[Event "WJCC U20 Open 2019"]
[Site "New Delhi"]
[Date "2019.10.17"]
[Round "4.1"]
[White "Santos Ruiz, Miguel"]
[Black "Shtembuliak, Evgeny"]
[Result "1/2-1/2"]
[ECO "B06"]
[WhiteElo "2560"]
[BlackElo "2577"]
[Annotator "ChessBase"]
[PlyCount "62"]
[EventDate "2019.10.15"]
[EventType "swiss"]
[EventCountry "IND"]
[SourceTitle "playchess.com"]
[Source "ChessBase"]
[SourceQuality "1"]
[TimeControl "40/5400+30:1800+30"]

1. d4 {[%emt 0:00:00]} g6 {[%emt 0:00:00]} 2. e4 {[%emt 0:00:00]} Bg7 {[%emt 0:00:00]} 3. Nc3 {[%emt 0:00:00]} d6 {[%emt 0:00:00]} 4. Be3 {[%emt 0:00:00]} a6 {[%emt 0:00:00]} 5. a4 {[%emt 0:00:00]} Nf6 {[%emt 0:04:38]} 6. f3 {[%emt 0:00:39]} Nc6 {[%emt 0:04:02]} 7. Nge2 {[%emt 0:03:08]} e5 {[%emt 0:03:33]} 8. dxe5 {[%emt 0:04:13]} dxe5 {[%emt 0:09:25]} 9. Qxd8+ {[%emt 0:00:53]} Nxd8 {[%emt 0:00:06]} 10. Nc1 {[%emt 0:05:26]} Be6 {[%emt 0:05:40]} 11. Nd3 {[%emt 0:05:08]} Nd7 {[%emt 0:00:21]} 12. Nb4 {[%emt 0:09:16]} Rc8 {[%emt 0:15:28]} 13. O-O-O {[%emt 0:10:35]} f5 {[%emt 0:21:41]} 14. exf5 {[%emt 0:08:31]} gxf5 {[%emt 0:00:51]} 15. Be2 {[%emt 0:06:44]} h5 {[%emt 0:01:25]} 16. g3 {[%emt 0:02:34]} Bf8 {[%emt 0:16:38]} 17. Nd3 {[%emt 0:04:52]} Nc6 {[%emt 0:01:22]} 18. f4 {[%emt 0:00:09]} e4 {[%emt 0:00:40]} 19. Nf2 {[%emt 0:00:04]} Nf6 {[%emt 0:04:19]} 20. Nh3 {[%emt 0:05:12]} Ng4 {[%emt 0:01:13]} 21. Bg1 {[%emt 0:02:48]} Rh6 {[%emt 0:02:46]} 22. Ng5 {[%emt 0:03:15]} Bg8 {[%emt 0:00:05]} 23. Nd5 {[%emt 0:01:45]} Nb4 {[%emt 0:03:50]} 24. Nxb4 {[%emt 0:05:35]} Bxb4 {[%emt 0:00:01]} 25. h3 {[%emt 0:00:08]} Nf6 {[%emt 0:00:04]} 26. Bd4 {[%emt 0:00:31]} Be7 {[%emt 0:01:36]} 27. g4 {[%emt 0:08:33]} hxg4 {[%emt 0:00:45]} 28. hxg4 {[%emt 0:00:03]} Rxh1 {[%emt 0:00:18]} 29. Rxh1 {[%emt 0:00:03]} Nxg4 {[%emt 0:00:20]} 30. Rh8 {[%emt 0:02:05]} Kd7 {[%emt 0:00:06]} 31. Nxe4 {[%emt 0:00:13]} Bd5 {[%emt 0:01:17]} 1/2-1/2

[Event "WJCC U20 Open 2019"]
[Site "New Delhi"]
[Date "2019.10.17"]
[Round "4.3"]
[White "Sargsyan, Shant"]
[Black "Haria, Ravi"]
[Result "1/2-1/2"]
[ECO "D38"]
[WhiteElo "2580"]
[BlackElo "2463"]
[Annotator "ChessBase"]
[PlyCount "71"]
[EventDate "2019.10.15"]
[EventType "swiss"]
[EventCountry "IND"]
[SourceTitle "playchess.com"]
[Source "ChessBase"]
[SourceQuality "1"]
[TimeControl "40/5400+30:1800+30"]

1. d4 {[%emt 0:02:41]} e6 {[%emt 0:00:07]} 2. Nf3 {[%emt 0:00:41]} Nf6 {[%emt 0:00:08]} 3. c4 {[%emt 0:00:30]} d5 {[%emt 0:00:05]} 4. Nc3 {[%emt 0:00:30]} Bb4 {[%emt 0:00:14]} 5. Bg5 {[%emt 0:00:45]} h6 {[%emt 0:00:18]} 6. Bxf6 {[%emt 0:00:44]} Qxf6 {[%emt 0:00:07]} 7. e3 {[%emt 0:01:01]} O-O {[%emt 0:00:35]} 8. Qb3 {[%emt 0:00:45]} c5 {[%emt 0:01:21]} 9. cxd5 {[%emt 0:00:48]} exd5 {[%emt 0:00:42]} 10. dxc5 {[%emt 0:00:40]} Bxc3+ {[%emt 0:00:21]} 11. Qxc3 {[%emt 0:00:21]} Qxc3+ {[%emt 0:01:36]} 12. bxc3 {[%emt 0:00:01]} Nd7 {[%emt 0:02:46]} 13. Rd1 {[%emt 0:01:10]} Nxc5 {[%emt 0:01:31]} 14. Rxd5 {[%emt 0:00:19]} b6 {[%emt 0:00:22]} 15. Rd4 {[%emt 0:01:00]} Be6 {[%emt 0:06:23]} 16. c4 {[%emt 0:01:52]} Rac8 {[%emt 0:01:26]} 17. Be2 {[%emt 0:06:04]} Nb7 {[%emt 0:15:50]} 18. Nd2 {[%emt 0:18:11]} Na5 {[%emt 0:11:39]} 19. O-O {[%emt 0:01:16]} Rc7 {[%emt 0:02:55]} 20. f4 {[%emt 0:06:39]} Rfc8 {[%emt 0:13:10]} 21. Rd1 {[%emt 0:03:48]} g6 {[%emt 0:06:17]} 22. e4 {[%emt 0:02:10]} Kf8 {[%emt 0:16:53]} 23. Kf2 {[%emt 0:04:47]} Nc6 {[%emt 0:00:29]} 24. Rd6 {[%emt 0:01:27]} Na5 {[%emt 0:03:36]} 25. e5 {[%emt 0:18:59]} Nxc4 {[%emt 0:09:01]} 26. Nxc4 {[%emt 0:00:15]} Bxc4 {[%emt 0:00:04]} 27. Bg4 {[%emt 0:00:13]} Re8 {[%emt 0:00:42]} 28. Bd7 {[%emt 0:02:43]} Re7 {[%emt 0:01:07]} 29. a4 {[%emt 0:01:57]} Be6 {[%emt 0:01:02]} 30. Bc6 {[%emt 0:01:36]} Rc8 {[%emt 0:00:28]} 31. Rd8+ {[%emt 0:02:12]} Rxd8 {[%emt 0:00:25]} 32. Rxd8+ {[%emt 0:00:02]} Kg7 {[%emt 0:00:08]} 33. Ke3 {[%emt 0:02:17]} Rc7 {[%emt 0:00:19]} 34. Rd6 {[%emt 0:00:08]} Kf8 {[%emt 0:00:44]} 35. h3 {[%emt 0:02:44]} h5 {[%emt 0:00:08]} 36. Rd8+ {[%emt 0:01:54]} 1/2-1/2

[Event "WJCC U20 Open 2019"]
[Site "New Delhi"]
[Date "2019.10.17"]
[Round "4.4"]
[White "Praggnanandhaa R"]
[Black "Batsuren, Dambasuren"]
[Result "1-0"]
[ECO "C77"]
[WhiteElo "2567"]
[BlackElo "2454"]
[Annotator "ChessBase"]
[PlyCount "87"]
[EventDate "2019.10.15"]
[EventType "swiss"]
[EventCountry "IND"]
[SourceTitle "playchess.com"]
[Source "ChessBase"]
[SourceQuality "1"]
[TimeControl "40/5400+30:1800+30"]

1. e4 {[%emt 0:00:58]} e5 {[%emt 0:00:00]} 2. Nf3 {[%emt 0:01:06]} Nc6 {[%emt 0:00:00]} 3. Bb5 {[%emt 0:01:01]} a6 {[%emt 0:00:02]} 4. Ba4 {[%emt 0:00:04]} Nf6 {[%emt 0:00:10]} 5. d3 {[%emt 0:00:07]} d6 {[%emt 0:00:21]} 6. c4 {[%emt 0:00:32]} g6 {[%emt 0:02:20]} 7. Nc3 {[%emt 0:00:15]} Bg7 {[%emt 0:00:53]} 8. Nd5 {[%emt 0:00:34]} h6 {[%emt 0:02:03]} 9. Nb4 {[%emt 0:03:09]} Bd7 {[%emt 0:01:35]} 10. Nxc6 {[%emt 0:00:14]} bxc6 {[%emt 0:01:31]} 11. c5 {[%emt 0:01:51]} O-O {[%emt 0:04:27]} 12. O-O {[%emt 0:08:18]} Re8 {[%emt 0:02:11]} 13. Nd2 {[%emt 0:05:59]} d5 {[%emt 0:03:10]} 14. Qc2 {[%emt 0:05:09]} Re6 {[%emt 0:02:37]} 15. Nb3 {[%emt 0:04:19]} Kh7 {[%emt 0:03:44]} 16. Bd2 {[%emt 0:08:33]} Qe8 {[%emt 0:05:25]} 17. Rac1 {[%emt 0:01:39]} Rd8 {[%emt 0:04:09]} 18. Ba5 {[%emt 0:03:44]} Rc8 {[%emt 0:00:33]} 19. Rfe1 {[%emt 0:00:51]} Qe7 {[%emt 0:01:02]} 20. Qd2 {[%emt 0:06:57]} Qd8 {[%emt 0:01:29]} 21. Na1 {[%emt 0:01:57]} h5 {[%emt 0:06:06]} 22. Nc2 {[%emt 0:18:26]} Bh6 {[%emt 0:05:05]} 23. Qd1 {[%emt 0:00:13]} Bxc1 {[%emt 0:02:57]} 24. Qxc1 {[%emt 0:00:03]} Be8 {[%emt 0:01:13]} 25. Bc3 {[%emt 0:03:50]} Rb8 {[%emt 0:12:06]} 26. b4 {[%emt 0:02:18]} dxe4 {[%emt 0:13:29]} 27. dxe4 {[%emt 0:00:43]} Nd7 {[%emt 0:00:14]} 28. Bb3 {[%emt 0:04:37]} Re7 {[%emt 0:00:32]} 29. Qe3 {[%emt 0:07:59]} Nf6 {[%emt 0:06:53]} 30. h3 {[%emt 0:02:28]} Ng8 {[%emt 0:02:18]} 31. f4 {[%emt 0:00:12]} exf4 {[%emt 0:02:17]} 32. Qxf4 {[%emt 0:00:15]} a5 {[%emt 0:02:12]} 33. Nd4 {[%emt 0:02:02]} axb4 {[%emt 0:04:50]} 34. Bb2 {[%emt 0:01:01]} f6 {[%emt 0:01:44]} 35. Nf3 {[%emt 0:04:59]} Rg7 {[%emt 0:04:42]} 36. e5 {[%emt 0:00:40]} g5 {[%emt 0:00:51]} 37. Qc1 {[%emt 0:00:15]} g4 {[%emt 0:02:30]} 38. exf6 {[%emt 0:00:56]} gxf3 {[%emt 0:00:28]} 39. fxg7 {[%emt 0:00:11]} Bg6 {[%emt 0:00:23]} 40. Re6 {[%emt 0:01:03]} Qh4 {[%emt 0:00:56]} 41. Qe3 {[%emt 0:07:15]} Bf5 {[%emt 0:10:45]} 42. Qxf3 {[%emt 0:00:46]} Bxe6 {[%emt 0:00:17]} 43. Bc2+ {[%emt 0:00:18]} Kh6 {[%emt 0:00:09]} 44. Qe3+ {[%emt 0:00:04]} 1-0

[Event "WJCC U20 Open 2019"]
[Site "New Delhi"]
[Date "2019.10.17"]
[Round "4.5"]
[White "Iniyan, P."]
[Black "Agmanov, Zhandos"]
[Result "1/2-1/2"]
[ECO "E54"]
[WhiteElo "2509"]
[BlackElo "2403"]
[Annotator "ChessBase"]
[PlyCount "59"]
[EventDate "2019.10.15"]
[EventType "swiss"]
[EventCountry "IND"]
[SourceTitle "playchess.com"]
[Source "ChessBase"]
[SourceQuality "1"]
[TimeControl "40/5400+30:1800+30"]

1. d4 {[%emt 0:00:00]} Nf6 {[%emt 0:00:33]} 2. c4 {[%emt 0:00:00]} e6 {[%emt 0:00:43]} 3. Nc3 {[%emt 0:00:00]} Bb4 {[%emt 0:01:06]} 4. e3 {[%emt 0:00:16]} O-O {[%emt 0:01:11]} 5. Bd3 {[%emt 0:00:05]} d5 {[%emt 0:01:21]} 6. Nf3 {[%emt 0:00:07]} dxc4 {[%emt 0:01:07]} 7. Bxc4 {[%emt 0:00:07]} c5 {[%emt 0:00:09]} 8. O-O {[%emt 0:00:06]} Nc6 {[%emt 0:01:24]} 9. a3 {[%emt 0:00:20]} Ba5 {[%emt 0:00:23]} 10. h3 {[%emt 0:01:17]} h6 {[%emt 0:01:30]} 11. Qd3 {[%emt 0:01:40]} cxd4 {[%emt 0:00:39]} 12. exd4 {[%emt 0:00:13]} Bc7 {[%emt 0:00:21]} 13. Rd1 {[%emt 0:11:37]} b6 {[%emt 0:01:41]} 14. d5 {[%emt 0:10:05]} exd5 {[%emt 0:00:27]} 15. Nxd5 {[%emt 0:00:21]} Be6 {[%emt 0:00:51]} 16. Nxc7 {[%emt 0:02:20]} Bxc4 {[%emt 0:01:10]} 17. Qc2 {[%emt 0:00:06]} Qxc7 {[%emt 0:00:29]} 18. Qxc4 {[%emt 0:00:07]} Rac8 {[%emt 0:04:53]} 19. Qa4 {[%emt 0:23:46]} Na5 {[%emt 0:26:38]} 20. Bd2 {[%emt 0:08:32]} Qc4 {[%emt 0:03:36]} 21. Qxc4 {[%emt 0:06:23]} Nxc4 {[%emt 0:00:39]} 22. Bb4 {[%emt 0:01:42]} Rfe8 {[%emt 0:01:04]} 23. b3 {[%emt 0:00:20]} Ne5 {[%emt 0:02:00]} 24. Nxe5 {[%emt 0:01:09]} Rxe5 {[%emt 0:00:01]} 25. Rac1 {[%emt 0:00:17]} Rxc1 {[%emt 0:05:50]} 26. Rxc1 {[%emt 0:00:02]} Rb5 {[%emt 0:00:49]} 27. Rb1 {[%emt 0:05:36]} Ne4 {[%emt 0:08:51]} 28. Re1 {[%emt 0:04:48]} Nf6 {[%emt 0:02:23]} 29. Rb1 {[%emt 0:00:08]} Ne4 {[%emt 0:00:21]} 30. Re1 {[%emt 0:00:07]} 1/2-1/2

[Event "WJCC U20 Open 2019"]
[Site "New Delhi"]
[Date "2019.10.17"]
[Round "4.6"]
[White "Davtyan, Artur"]
[Black "Tabatabaei, M.amin"]
[Result "1/2-1/2"]
[ECO "D37"]
[WhiteElo "2418"]
[BlackElo "2642"]
[Annotator "RC"]
[PlyCount "77"]
[EventDate "2019.10.15"]
[EventType "swiss"]
[EventCountry "IND"]
[SourceTitle "playchess.com"]
[Source "ChessBase"]
[SourceQuality "1"]
[TimeControl "40/5400+30:1800+30"]

1. d4 {[%emt 0:00:52]} Nf6 {[%emt 0:00:04]} 2. c4 {[%emt 0:00:52]} e6 {[%emt 0:00:09]} 3. Nf3 {[%emt 0:00:19]} d5 {[%emt 0:00:15]} 4. Nc3 {[%emt 0:00:08]} Be7 {[%emt 0:01:13]} 5. g3 {[%emt 0:00:29]} O-O {[%emt 0:01:42]} 6. Bg2 {[%emt 0:00:28]} dxc4 {[%emt 0:02:34]} 7. Ne5 {[%emt 0:00:20]} c5 {[%emt 0:00:08]} 8. dxc5 {[%emt 0:00:59]} Qxd1+ {[%emt 0:00:21]} 9. Nxd1 {[%emt 0:00:09]} Bxc5 {[%emt 0:00:05]} 10. O-O {[%emt 0:01:05]} Nc6 {[%emt 0:00:37]} 11. Nxc6 {[%emt 0:03:53]} bxc6 {[%emt 0:00:14]} 12. Be3 {[%emt 0:03:50]} Bxe3 {[%emt 0:01:39]} 13. Nxe3 {[%emt 0:00:28]} Ba6 {[%emt 0:01:25]} 14. Rfc1 {[%emt 0:00:57]} Rab8 {[%emt 0:09:27]} 15. Rab1 {[%emt 0:00:50]} c3 {[%emt 0:21:21]} 16. Rxc3 {[%emt 0:01:01]} Bxe2 {[%emt 0:00:11]} 17. Rxc6 {[%emt 0:00:26]} Rfd8 {[%emt 0:00:31]} 18. b3 {[%emt 0:01:45]} g5 {[%emt 0:19:58]} 19. Re1 {[%emt 0:06:34]} Rd2 {[%emt 0:05:37]} 20. Rc2 {[%emt 0:02:57]} Rxc2 {[%emt 0:00:12]} 21. Nxc2 {[%emt 0:00:07]} Bb5 {[%emt 0:00:15]} 22. Nd4 {[%emt 0:03:00]} Be8 {[%emt 0:00:18]} 23. h3 {[%emt 0:10:50]} Rc8 {[%emt 0:12:20]} 24. Re5 {[%emt 0:02:13]} Rc1+ {[%emt 0:00:09]} 25. Kh2 {[%emt 0:00:52]} g4 {[%emt 0:01:04]} 26. Ra5 {[%emt 0:21:17]} Rd1 {[%emt 0:00:09]} 27. Nc6 {[%emt 0:05:58]} Rd2 {[%emt 0:00:40]} 28. Rxa7 {[%emt 0:02:04]} Rxf2 {[%emt 0:02:03]} 29. Ne5 {[%emt 0:00:14]} Re2 {[%emt 0:01:59]} 30. Ra5 {[%emt 0:01:30]} h5 {[%emt 0:09:22]} 31. Kg1 {[%emt 0:02:47]} gxh3 {[%emt 0:03:19]} 32. Bxh3 {[%emt 0:01:40]} Kg7 {[%emt 0:00:01]} 33. Kf1 {[%emt 0:01:31]} Re3 {[%emt 0:02:07]} 34. Kf2 {[%emt 0:01:07]} Rc3 {[%emt 0:00:04]} 35. Bg2 {[%emt 0:00:28]} Rc2+ {[%emt 0:01:01]} 36. Kg1 {[%emt 0:01:50]} Rc1+ {[%emt 0:00:57]} 37. Kf2 {[%emt 0:00:09]} Rc2+ {[%emt 0:00:24]} 38. Kg1 {[%emt 0:00:13]} Rc1+ {[%emt 0:00:35]} 39. Kf2 {[%emt 0:00:35]} 1/2-1/2

[Event "WJCC U20 Open 2019"]
[Site "New Delhi"]
[Date "2019.10.17"]
[Round "4.7"]
[White "Kollars, Dmitrij"]
[Black "Sammed Jaykumar, Shete"]
[Result "1/2-1/2"]
[ECO "B31"]
[WhiteElo "2587"]
[BlackElo "2392"]
[Annotator "ChessBase"]
[PlyCount "100"]
[EventDate "2019.10.15"]
[EventType "swiss"]
[EventCountry "IND"]
[SourceTitle "playchess.com"]
[Source "ChessBase"]
[SourceQuality "1"]
[TimeControl "40/5400+30:1800+30"]

1. e4 {[%emt 0:00:00]} c5 {[%emt 0:00:00]} 2. Nf3 {[%emt 0:00:07]} Nc6 {[%emt 0:00:00]} 3. Bb5 {[%emt 0:00:23]} g6 {[%emt 0:00:00]} 4. Bxc6 {[%emt 0:00:22]} dxc6 {[%emt 0:00:04]} 5. d3 {[%emt 0:00:49]} Bg7 {[%emt 0:00:22]} 6. h3 {[%emt 0:00:33]} Nf6 {[%emt 0:00:27]} 7. Nc3 {[%emt 0:00:48]} Nd7 {[%emt 0:00:35]} 8. Be3 {[%emt 0:00:23]} e5 {[%emt 0:00:21]} 9. Qd2 {[%emt 0:00:26]} h6 {[%emt 0:00:15]} 10. O-O {[%emt 0:01:17]} b6 {[%emt 0:00:22]} 11. a4 {[%emt 0:00:28]} a5 {[%emt 0:00:15]} 12. Nh2 {[%emt 0:00:37]} Nf8 {[%emt 0:00:26]} 13. f4 {[%emt 0:00:35]} exf4 {[%emt 0:00:12]} 14. Bxf4 {[%emt 0:02:03]} Ne6 {[%emt 0:00:12]} 15. Be3 {[%emt 0:00:10]} Nd4 {[%emt 0:00:30]} 16. Rae1 {[%emt 0:02:27]} Be6 {[%emt 0:03:22]} 17. Nd1 {[%emt 0:07:15]} c4 {[%emt 0:06:49]} 18. Nf2 {[%emt 0:00:51]} Qe7 {[%emt 0:09:29]} 19. Bxd4 {[%emt 0:13:04]} Bxd4 {[%emt 0:00:13]} 20. c3 {[%emt 0:00:53]} Bxf2+ {[%emt 0:01:05]} 21. Qxf2 {[%emt 0:02:08]} cxd3 {[%emt 0:00:21]} 22. Qxb6 {[%emt 0:04:39]} Qa7 {[%emt 0:06:02]} 23. Qxa7 {[%emt 0:18:42]} Rxa7 {[%emt 0:00:05]} 24. Rf3 {[%emt 0:00:51]} Rb7 {[%emt 0:05:39]} 25. Rxd3 {[%emt 0:00:40]} Rxb2 {[%emt 0:00:54]} 26. Nf3 {[%emt 0:04:48]} c5 {[%emt 0:12:02]} 27. Rd6 {[%emt 0:01:28]} Ke7 {[%emt 0:10:04]} 28. Ra6 {[%emt 0:01:29]} Rhb8 {[%emt 0:02:19]} 29. Rxa5 {[%emt 0:02:08]} Rc2 {[%emt 0:00:25]} 30. Re3 {[%emt 0:01:38]} Rb1+ {[%emt 0:09:29]} 31. Kh2 {[%emt 0:04:35]} Rbb2 {[%emt 0:11:50]} 32. Ne1 {[%emt 0:00:12]} Re2 {[%emt 0:00:21]} 33. Rxe2 {[%emt 0:00:28]} Rxe2 {[%emt 0:00:06]} 34. Nd3 {[%emt 0:04:52]} c4 {[%emt 0:00:56]} 35. Ra7+ {[%emt 0:01:02]} Kf6 {[%emt 0:02:01]} 36. Nf4 {[%emt 0:08:00]} Re3 {[%emt 0:01:19]} 37. Nd5+ {[%emt 0:03:14]} Bxd5 {[%emt 0:00:07]} 38. exd5 {[%emt 0:00:04]} Rxc3 {[%emt 0:00:14]} 39. a5 {[%emt 0:02:48]} Ra3 {[%emt 0:01:31]} 40. Rc7 {[%emt 0:02:34]} Rxa5 {[%emt 0:00:51]} 41. Rxc4 {[%emt 0:30:05]} Rxd5 {[%emt 0:30:05]} 42. h4 {[%emt 0:01:11]} Kf5 {[%emt 0:03:16]} 43. Kh3 {[%emt 0:00:54]} h5 {[%emt 0:00:37]} 44. g3 {[%emt 0:01:28]} f6 {[%emt 0:00:47]} 45. Rc8 {[%emt 0:01:52]} Rd2 {[%emt 0:00:14]} 46. Rf8 {[%emt 0:01:16]} Rf2 {[%emt 0:00:50]} 47. Rg8 {[%emt 0:00:15]} Rd2 {[%emt 0:00:13]} 48. Rf8 {[%emt 0:00:41]} Ke6 {[%emt 0:00:24]} 49. Rg8 {[%emt 0:00:48]} Kf7 {[%emt 0:01:04]} 50. Ra8 {[%emt 0:00:42]} g5 {[%emt 0:02:20]} 1/2-1/2

[Event "WJCC U20 Open 2019"]
[Site "New Delhi"]
[Date "2019.10.17"]
[Round "4.8"]
[White "Percivaldi, Martin"]
[Black "Hakobyan, Aram"]
[Result "0-1"]
[ECO "D38"]
[WhiteElo "2391"]
[BlackElo "2561"]
[Annotator "ChessBase"]
[PlyCount "92"]
[EventDate "2019.10.15"]
[EventType "swiss"]
[EventCountry "IND"]
[SourceTitle "playchess.com"]
[Source "ChessBase"]
[SourceQuality "1"]
[TimeControl "40/5400+30:1800+30"]

1. d4 {[%emt 0:00:46]} Nf6 {[%emt 0:00:00]} 2. c4 {[%emt 0:01:25]} e6 {[%emt 0:00:00]} 3. Nf3 {[%emt 0:00:18]} d5 {[%emt 0:00:14]} 4. Nc3 {[%emt 0:01:03]} Bb4 {[%emt 0:01:42]} 5. Bg5 {[%emt 0:00:56]} h6 {[%emt 0:02:05]} 6. Bxf6 {[%emt 0:00:12]} Qxf6 {[%emt 0:00:02]} 7. Qa4+ {[%emt 0:00:17]} Nc6 {[%emt 0:00:07]} 8. e3 {[%emt 0:00:15]} O-O {[%emt 0:00:17]} 9. Be2 {[%emt 0:00:11]} Rd8 {[%emt 0:00:12]} 10. Qb3 {[%emt 0:04:52]} Qf5 {[%emt 0:21:06]} 11. cxd5 {[%emt 0:09:27]} exd5 {[%emt 0:01:38]} 12. a3 {[%emt 0:00:13]} Ba5 {[%emt 0:03:03]} 13. O-O {[%emt 0:02:28]} Ne7 {[%emt 0:00:54]} 14. Rfc1 {[%emt 0:03:19]} c6 {[%emt 0:01:31]} 15. Qd1 {[%emt 0:00:23]} Bc7 {[%emt 0:03:20]} 16. b4 {[%emt 0:05:12]} a6 {[%emt 0:02:29]} 17. a4 {[%emt 0:09:57]} g5 {[%emt 0:00:10]} 18. Ne1 {[%emt 0:14:25]} g4 {[%emt 0:02:04]} 19. g3 {[%emt 0:02:31]} h5 {[%emt 0:01:20]} 20. Ng2 {[%emt 0:05:54]} Ng6 {[%emt 0:00:20]} 21. Bd3 {[%emt 0:00:26]} Qf6 {[%emt 0:00:51]} 22. Ne2 {[%emt 0:01:46]} Kg7 {[%emt 0:04:48]} 23. Qc2 {[%emt 0:06:58]} Bd6 {[%emt 0:04:26]} 24. Rab1 {[%emt 0:00:40]} Be6 {[%emt 0:03:46]} 25. b5 {[%emt 0:02:47]} cxb5 {[%emt 0:00:21]} 26. axb5 {[%emt 0:00:09]} a5 {[%emt 0:00:03]} 27. e4 {[%emt 0:00:26]} dxe4 {[%emt 0:01:56]} 28. Bxe4 {[%emt 0:00:22]} Rab8 {[%emt 0:04:47]} 29. Ne3 {[%emt 0:00:34]} Ne7 {[%emt 0:01:46]} 30. d5 {[%emt 0:03:01]} Bd7 {[%emt 0:00:51]} 31. Nc4 {[%emt 0:04:32]} Nf5 {[%emt 0:12:36]} 32. Nxa5 {[%emt 0:03:29]} Ba3 {[%emt 0:00:22]} 33. Rd1 {[%emt 0:01:25]} Nd6 {[%emt 0:01:14]} 34. Bd3 {[%emt 0:00:31]} Rbc8 {[%emt 0:01:11]} 35. Qa2 {[%emt 0:04:10]} Bc5 {[%emt 0:00:19]} 36. Nf4 {[%emt 0:00:06]} Rh8 {[%emt 0:00:45]} 37. Nb3 {[%emt 0:00:58]} Bb6 {[%emt 0:00:38]} 38. Nd2 {[%emt 0:03:26]} h4 {[%emt 0:08:11]} 39. Ne4 {[%emt 0:02:34]} Nxe4 {[%emt 0:03:43]} 40. Bxe4 {[%emt 0:00:08]} Rc3 {[%emt 0:06:04]} 41. Rd3 {[%emt 0:37:01]} hxg3 {[%emt 0:38:24]} 42. hxg3 {[%emt 0:00:14]} Rxd3 {[%emt 0:00:00]} 43. Bxd3 {[%emt 0:00:00]} Qh6 {[%emt 0:00:00]} 44. Qb2+ {[%emt 0:00:00]} f6 {[%emt 0:00:00]} 45. Be4 {[%emt 0:00:00]} Bxb5 {[%emt 0:00:00]} 46. Ne6+ {[%emt 0:00:00]} Kg8 {[%emt 0:00:00]} 0-1

[Event "WJCC U20 Open 2019"]
[Site "New Delhi"]
[Date "2019.10.17"]
[Round "4.9"]
[White "Aronyak Ghosh"]
[Black "Harsha Bharathakoti"]
[Result "1/2-1/2"]
[ECO "A10"]
[WhiteElo "2380"]
[BlackElo "2530"]
[Annotator "ChessBase"]
[PlyCount "69"]
[EventDate "2019.10.15"]
[EventType "swiss"]
[EventCountry "IND"]
[SourceTitle "playchess.com"]
[Source "ChessBase"]
[SourceQuality "1"]
[TimeControl "40/5400+30:1800+30"]

1. c4 {[%emt 0:00:04]} g6 {[%emt 0:02:57]} 2. g3 {[%emt 0:00:37]} Bg7 {[%emt 0:00:11]} 3. Bg2 {[%emt 0:00:08]} d6 {[%emt 0:01:05]} 4. Nc3 {[%emt 0:00:49]} Nf6 {[%emt 0:00:21]} 5. Nf3 {[%emt 0:00:37]} O-O {[%emt 0:00:20]} 6. O-O {[%emt 0:00:07]} Nbd7 {[%emt 0:01:22]} 7. Rb1 {[%emt 0:02:00]} e5 {[%emt 0:07:00]} 8. d3 {[%emt 0:01:29]} Nc5 {[%emt 0:07:17]} 9. b4 {[%emt 0:05:21]} Ne6 {[%emt 0:00:46]} 10. a4 {[%emt 0:01:25]} a5 {[%emt 0:07:13]} 11. b5 {[%emt 0:00:28]} Nd7 {[%emt 0:01:50]} 12. Ba3 {[%emt 0:05:40]} f5 {[%emt 0:01:48]} 13. Nd2 {[%emt 0:01:28]} h5 {[%emt 0:08:38]} 14. e3 {[%emt 0:13:00]} e4 {[%emt 0:09:53]} 15. Qc2 {[%emt 0:03:25]} exd3 {[%emt 0:01:23]} 16. Qxd3 {[%emt 0:00:10]} Ne5 {[%emt 0:08:22]} 17. Qe2 {[%emt 0:05:12]} h4 {[%emt 0:01:31]} 18. Nd5 {[%emt 0:01:36]} hxg3 {[%emt 0:04:24]} 19. hxg3 {[%emt 0:01:49]} g5 {[%emt 0:03:50]} 20. Nf3 {[%emt 0:08:04]} Ng6 {[%emt 0:03:49]} 21. Qc2 {[%emt 0:03:27]} b6 {[%emt 0:10:13]} 22. Rbd1 {[%emt 0:01:23]} Bd7 {[%emt 0:06:05]} 23. Nd4 {[%emt 0:02:02]} Nc5 {[%emt 0:00:06]} 24. Bh3 {[%emt 0:04:33]} Qc8 {[%emt 0:07:19]} 25. Nc6 {[%emt 0:03:44]} Rf7 {[%emt 0:00:52]} 26. Bxc5 {[%emt 0:01:29]} bxc5 {[%emt 0:01:15]} 27. f4 {[%emt 0:00:41]} gxf4 {[%emt 0:01:30]} 28. gxf4 {[%emt 0:00:09]} Kf8 {[%emt 0:01:17]} 29. Kh2 {[%emt 0:00:27]} Bxc6 {[%emt 0:00:11]} 30. bxc6 {[%emt 0:00:03]} Ne7 {[%emt 0:00:17]} 31. Rg1 {[%emt 0:02:47]} Rb8 {[%emt 0:01:36]} 32. Rd2 {[%emt 0:03:56]} Nxd5 {[%emt 0:00:08]} 33. cxd5 {[%emt 0:00:13]} Rb2 {[%emt 0:01:02]} 34. Qc1 {[%emt 0:01:11]} Qb8 {[%emt 0:00:36]} 35. Rxb2 {[%emt 0:04:12]} 1/2-1/2

[Event "WJCC U20 Open 2019"]
[Site "New Delhi"]
[Date "2019.10.17"]
[Round "4.10"]
[White "Wang, Shixu B"]
[Black "Lobanov, Sergei"]
[Result "1-0"]
[ECO "E47"]
[WhiteElo "2370"]
[BlackElo "2516"]
[Annotator "ChessBase"]
[PlyCount "61"]
[EventDate "2019.10.15"]
[EventType "swiss"]
[EventCountry "IND"]
[SourceTitle "playchess.com"]
[Source "ChessBase"]
[SourceQuality "1"]
[TimeControl "40/5400+30:1800+30"]

1. d4 {[%emt 0:00:00]} Nf6 {[%emt 0:00:00]} 2. c4 {[%emt 0:00:00]} e6 {[%emt 0:00:00]} 3. Nc3 {[%emt 0:00:04]} Bb4 {[%emt 0:00:00]} 4. e3 {[%emt 0:00:05]} O-O {[%emt 0:00:00]} 5. Bd3 {[%emt 0:00:05]} Re8 {[%emt 0:00:11]} 6. Nf3 {[%emt 0:00:26]} Bxc3+ {[%emt 0:03:28]} 7. bxc3 {[%emt 0:00:04]} d6 {[%emt 0:00:03]} 8. O-O {[%emt 0:00:37]} Nc6 {[%emt 0:00:07]} 9. e4 {[%emt 0:08:14]} e5 {[%emt 0:00:10]} 10. d5 {[%emt 0:05:56]} Ne7 {[%emt 0:01:19]} 11. Nh4 {[%emt 0:05:16]} Ng6 {[%emt 0:02:05]} 12. Nf5 {[%emt 0:01:41]} Bxf5 {[%emt 0:10:26]} 13. exf5 {[%emt 0:00:05]} Nf8 {[%emt 0:00:06]} 14. Bg5 {[%emt 0:02:55]} N8d7 {[%emt 0:00:05]} 15. Bc2 {[%emt 0:02:00]} Nb6 {[%emt 0:07:47]} 16. Rb1 {[%emt 0:02:42]} Kh8 {[%emt 0:07:42]} 17. Re1 {[%emt 0:03:53]} Rc8 {[%emt 0:05:42]} 18. a4 {[%emt 0:09:14]} c6 {[%emt 0:18:15]} 19. a5 {[%emt 0:03:16]} Nxc4 {[%emt 0:00:27]} 20. Rxb7 {[%emt 0:00:55]} Re7 {[%emt 0:04:01]} 21. dxc6 {[%emt 0:18:52]} Nxa5 {[%emt 0:07:04]} 22. Bxf6 {[%emt 0:00:23]} gxf6 {[%emt 0:00:06]} 23. Rb4 {[%emt 0:00:04]} Re8 {[%emt 0:00:48]} 24. Qh5 {[%emt 0:01:29]} Rg8 {[%emt 0:09:00]} 25. Re3 {[%emt 0:03:45]} Rg5 {[%emt 0:04:49]} 26. Qh6 {[%emt 0:04:28]} Qg8 {[%emt 0:01:18]} 27. Qxf6+ {[%emt 0:00:16]} Qg7 {[%emt 0:00:01]} 28. Qxg7+ {[%emt 0:00:03]} Kxg7 {[%emt 0:00:01]} 29. h4 {[%emt 0:01:33]} Rh5 {[%emt 0:01:03]} 30. g4 {[%emt 0:05:26]} Rxh4 {[%emt 0:00:10]} 31. f6+ {[%emt 0:01:05]} 1-0